[Event "Titled Tuesday Blitz February 07 Late 2023"]
[White "Manu_ChessExcelsior"]
[Black "Rizzo, Tobias"]
[BlackFideId "30942691"]
[WhiteElo "1881"]
[BlackElo "1867"]
[Result "0-1"]
[Round "09"]
[TimeControl "180+2"]
[Date "2023.02.07"]
[WhiteClock "0:00:09"]
[BlackClock "0:00:19"]

1. e4 {[%clk 0:02:53]}  c5 {[%clk 0:03:00]} 2. g3 {[%clk 0:02:52]}  d5 {[%clk 0:02:59]} 3. exd5 {[%clk 0:02:52]}  Qxd5 {[%clk 0:03:00]} 4. Nf3 {[%clk 0:02:53]}  Nc6 {[%clk 0:02:58]} 5. Nc3 {[%clk 0:02:51]}  Qd7 {[%clk 0:02:56]} 6. Bg2 {[%clk 0:02:50]}  b6 {[%clk 0:02:56]} 7. O-O {[%clk 0:02:50]}  Bb7 {[%clk 0:02:56]} 8. Re1 {[%clk 0:02:42]}  O-O-O {[%clk 0:02:54]} 9. d3 {[%clk 0:02:39]}  f6 {[%clk 0:02:51]} 10. Ne2 {[%clk 0:02:14]}  e5 {[%clk 0:02:50]} 11. Bd2 {[%clk 0:02:09]}  g5 {[%clk 0:02:40]} 12. Bc3 {[%clk 0:02:05]}  Nge7 {[%clk 0:02:34]} 13. Nd2 {[%clk 0:02:04]}  Ng6 {[%clk 0:02:32]} 14. a4 {[%clk 0:02:04]}  h5 {[%clk 0:02:30]} 15. Nc4 {[%clk 0:02:03]}  h4 {[%clk 0:02:29]} 16. Qc1 {[%clk 0:02:02]}  Nd4 {[%clk 0:02:24]} 17. Nxd4 {[%clk 0:01:54]}  cxd4 {[%clk 0:02:19]} 18. Bd2 {[%clk 0:01:46]}  Bxg2 {[%clk 0:02:19]} 19. Kxg2 {[%clk 0:01:47]}  h3+ {[%clk 0:02:18]} 20. Kg1 {[%clk 0:01:33]}  Qc6 {[%clk 0:02:17]} 21. Re4 {[%clk 0:01:21]}  f5 {[%clk 0:02:16]} 22. Bxg5 {[%clk 0:01:15]}  fxe4 {[%clk 0:02:15]} 23. Bxd8 {[%clk 0:01:14]}  exd3 {[%clk 0:02:15]} 24. Qf1 {[%clk 0:01:05]}  Kxd8 {[%clk 0:02:10]} 25. cxd3 {[%clk 0:01:04]}  Bc5 {[%clk 0:01:58]} 26. Re1 {[%clk 0:01:02]}  Qd5 {[%clk 0:01:58]} 27. Re4 {[%clk 0:00:56]}  Qe6 {[%clk 0:01:32]} 28. f4 {[%clk 0:00:51]}  Rf8 {[%clk 0:01:24]} 29. Qe2 {[%clk 0:00:29]}  Qc6 {[%clk 0:01:05]} 30. Nxe5 {[%clk 0:00:28]}  Nxe5 {[%clk 0:01:05]} 31. Rxe5 {[%clk 0:00:28]}  Bd6 {[%clk 0:00:41]} 32. Re4 {[%clk 0:00:26]}  Qxa4 {[%clk 0:00:35]} 33. Qf1 {[%clk 0:00:20]}  Qc2 {[%clk 0:00:31]} 34. Rxd4 {[%clk 0:00:20]}  Kc7 {[%clk 0:00:27]} 35. Rc4+ {[%clk 0:00:19]}  Bc5+ {[%clk 0:00:27]} 36. d4 {[%clk 0:00:17]}  Qd2 {[%clk 0:00:19]} 37. dxc5 {[%clk 0:00:17]}  b5 {[%clk 0:00:19]} 38. Rc3 {[%clk 0:00:16]}  Re8 {[%clk 0:00:19]} 39. f5 {[%clk 0:00:13]}  Re1 {[%clk 0:00:19]} 40. Rf3 {[%clk 0:00:09]}  Qg2# {[%clk 0:00:19]} 0-1


[Site "https://www.chess.com"]

[Event "Titled Tuesday Blitz February 07 Late 2023"]
[White "Pinheiro, Iung Alicio de O."]
[Black "Sabar, Ethmane Daouda"]
[WhiteFideId "2104350"]
[BlackFideId "19600097"]
[WhiteElo "2306"]
[BlackElo "2040"]
[Result "1-0"]
[Round "09"]
[TimeControl "180+2"]
[Date "2023.02.07"]
[WhiteClock "0:00:09"]
[BlackClock "0:00:01"]

1. c4 {[%clk 0:03:00]}  e5 {[%clk 0:02:57]} 2. g3 {[%clk 0:03:00]}  Nf6 {[%clk 0:02:58]} 3. Bg2 {[%clk 0:03:00]}  d5 {[%clk 0:02:58]} 4. cxd5 {[%clk 0:03:00]}  Nxd5 {[%clk 0:02:59]} 5. Nf3 {[%clk 0:02:59]}  Nc6 {[%clk 0:02:59]} 6. O-O {[%clk 0:02:59]}  Be6 {[%clk 0:02:51]} 7. d4 {[%clk 0:02:57]}  exd4 {[%clk 0:02:50]} 8. Nxd4 {[%clk 0:02:57]}  Nxd4 {[%clk 0:02:48]} 9. Qxd4 {[%clk 0:02:57]}  c6 {[%clk 0:02:28]} 10. Nd2 {[%clk 0:02:19]}  Qf6 {[%clk 0:02:20]} 11. Qa4 {[%clk 0:02:10]}  Nb6 {[%clk 0:02:09]} 12. Qc2 {[%clk 0:02:07]}  Qg6 {[%clk 0:01:53]} 13. e4 {[%clk 0:02:00]}  O-O-O {[%clk 0:01:41]} 14. a4 {[%clk 0:01:42]}  Kb8 {[%clk 0:01:35]} 15. a5 {[%clk 0:01:41]}  Nd5 {[%clk 0:01:26]} 16. Nf3 {[%clk 0:01:27]}  Nb4 {[%clk 0:01:23]} 17. Qe2 {[%clk 0:01:24]}  f5 {[%clk 0:01:00]} 18. Bf4+ {[%clk 0:01:15]}  Ka8 {[%clk 0:00:58]} 19. Nh4 {[%clk 0:01:12]}  Qf7 {[%clk 0:00:55]} 20. Rfd1 {[%clk 0:00:52]}  Bc5 {[%clk 0:00:52]} 21. Nxf5 {[%clk 0:00:50]}  Bxf5 {[%clk 0:00:50]} 22. exf5 {[%clk 0:00:50]}  Rhe8 {[%clk 0:00:46]} 23. Qf3 {[%clk 0:00:46]}  a6 {[%clk 0:00:35]} 24. Bg5 {[%clk 0:00:39]}  Rxd1+ {[%clk 0:00:34]} 25. Rxd1 {[%clk 0:00:39]}  Nd5 {[%clk 0:00:25]} 26. Qg4 {[%clk 0:00:23]}  g6 {[%clk 0:00:17]} 27. f6 {[%clk 0:00:17]}  h6 {[%clk 0:00:12]} 28. Bxh6 {[%clk 0:00:16]}  Qxf6 {[%clk 0:00:12]} 29. Qf3 {[%clk 0:00:15]}  Qxf3 {[%clk 0:00:12]} 30. Bxf3 {[%clk 0:00:16]}  Nb4 {[%clk 0:00:09]} 31. Kg2 {[%clk 0:00:14]}  Nc2 {[%clk 0:00:06]} 32. Bg4 {[%clk 0:00:08]}  Nd4 {[%clk 0:00:04]} 33. Be3 {[%clk 0:00:08]}  Nb3 {[%clk 0:00:01]} 34. Bxc5 {[%clk 0:00:08]}  Nxc5 {[%clk 0:00:02]} 35. h4 {[%clk 0:00:08]}  Nb3 {[%clk 0:00:02]} 36. Bf3 {[%clk 0:00:08]}  Nxa5 {[%clk 0:00:02]} 37. Rd6 {[%clk 0:00:08]}  Nc4 {[%clk 0:00:02]} 38. Rxg6 {[%clk 0:00:09]}  Nxb2 {[%clk 0:00:02]} 39. h5 {[%clk 0:00:10]}  Nd3 {[%clk 0:00:01]} 40. Bg4 {[%clk 0:00:08]}  Ne5 {[%clk 0:00:01]} 41. Rg7 {[%clk 0:00:09]} 1-0


[Site "https://www.chess.com"]

[Event "Titled Tuesday Blitz February 07 Late 2023"]
[White "Mione, Dario"]
[Black "Sonnenschein, Philipp"]
[WhiteFideId "806625"]
[BlackFideId "16250877"]
[WhiteElo "2228"]
[BlackElo "2224"]
[Result "0-1"]
[Round "09"]
[TimeControl "180+2"]
[Date "2023.02.07"]
[WhiteClock "0:00:01"]
[BlackClock "0:00:02"]

1. Nf3 {[%clk 0:03:00]}  g6 {[%clk 0:02:59]} 2. g3 {[%clk 0:02:57]}  Bg7 {[%clk 0:02:59]} 3. Bg2 {[%clk 0:02:57]}  Nf6 {[%clk 0:03:00]} 4. d4 {[%clk 0:02:56]}  d5 {[%clk 0:02:59]} 5. O-O {[%clk 0:02:55]}  O-O {[%clk 0:02:59]} 6. c4 {[%clk 0:02:55]}  dxc4 {[%clk 0:03:00]} 7. Ne5 {[%clk 0:02:55]}  Nc6 {[%clk 0:02:56]} 8. Nxc6 {[%clk 0:02:51]}  bxc6 {[%clk 0:02:57]} 9. Bxc6 {[%clk 0:02:51]}  Bh3 {[%clk 0:02:55]} 10. Bg2 {[%clk 0:02:41]}  Bxg2 {[%clk 0:02:54]} 11. Kxg2 {[%clk 0:02:42]}  Qd5+ {[%clk 0:02:08]} 12. f3 {[%clk 0:02:37]}  Rfd8 {[%clk 0:02:08]} 13. Be3 {[%clk 0:02:33]}  Rab8 {[%clk 0:01:59]} 14. Qc1 {[%clk 0:02:22]}  e5 {[%clk 0:01:43]} 15. Nc3 {[%clk 0:02:16]}  Qe6 {[%clk 0:01:43]} 16. dxe5 {[%clk 0:02:07]}  Qxe5 {[%clk 0:01:43]} 17. Bf4 {[%clk 0:02:07]}  Qa5 {[%clk 0:01:29]} 18. e4 {[%clk 0:02:06]}  Qb6 {[%clk 0:01:12]} 19. Rf2 {[%clk 0:01:53]}  Rd3 {[%clk 0:01:11]} 20. Be5 {[%clk 0:01:36]}  Rbd8 {[%clk 0:00:56]} 21. Bxf6 {[%clk 0:01:33]}  Bxf6 {[%clk 0:00:56]} 22. Nd5 {[%clk 0:01:33]}  Qc6 {[%clk 0:00:39]} 23. Nxf6+ {[%clk 0:01:30]}  Qxf6 {[%clk 0:00:39]} 24. Qxc4 {[%clk 0:01:30]}  Rxf3 {[%clk 0:00:37]} 25. Raf1 {[%clk 0:01:19]}  Rxf2+ {[%clk 0:00:31]} 26. Rxf2 {[%clk 0:01:20]}  Qe7 {[%clk 0:00:27]} 27. b3 {[%clk 0:01:10]}  Re8 {[%clk 0:00:27]} 28. Rf4 {[%clk 0:00:59]}  c5 {[%clk 0:00:17]} 29. h4 {[%clk 0:00:57]}  h5 {[%clk 0:00:16]} 30. Kf3 {[%clk 0:00:54]}  Kg7 {[%clk 0:00:16]} 31. Qc3+ {[%clk 0:00:53]}  f6 {[%clk 0:00:14]} 32. Qc4 {[%clk 0:00:49]}  Qe5 {[%clk 0:00:11]} 33. Kg2 {[%clk 0:00:45]}  Rd8 {[%clk 0:00:11]} 34. Rf2 {[%clk 0:00:15]}  Rd4 {[%clk 0:00:11]} 35. Qc2 {[%clk 0:00:14]}  Rxe4 {[%clk 0:00:09]} 36. Kh2 {[%clk 0:00:12]}  Re3 {[%clk 0:00:09]} 37. Rg2 {[%clk 0:00:10]}  Qd5 {[%clk 0:00:08]} 38. Qf2 {[%clk 0:00:09]}  Qe5 {[%clk 0:00:07]} 39. Qc2 {[%clk 0:00:08]}  f5 {[%clk 0:00:07]} 40. Qc4 {[%clk 0:00:07]}  Kf6 {[%clk 0:00:05]} 41. Qa6+ {[%clk 0:00:06]}  Qe6 {[%clk 0:00:04]} 42. Qxa7 {[%clk 0:00:05]}  f4 {[%clk 0:00:01]} 43. Qc7 {[%clk 0:00:03]}  fxg3+ {[%clk 0:00:01]} 44. Rxg3 {[%clk 0:00:01]}  Re2+ {[%clk 0:00:02]} 0-1


[Site "https://www.chess.com"]

[Event "Titled Tuesday Blitz February 07 Late 2023"]
[White "Papayan, Oleg"]
[Black "Alexikov, Alexander"]
[WhiteFideId "4193911"]
[BlackFideId "14103958"]
[WhiteElo "2253"]
[BlackElo "2209"]
[Result "1-0"]
[Round "09"]
[TimeControl "180+2"]
[Date "2023.02.07"]
[WhiteClock "0:00:04"]
[BlackClock "0:00:01"]

1. d4 {[%clk 0:02:56]}  Nf6 {[%clk 0:02:58]} 2. Nf3 {[%clk 0:02:55]}  g6 {[%clk 0:02:57]} 3. Nc3 {[%clk 0:02:54]}  d5 {[%clk 0:02:52]} 4. Bf4 {[%clk 0:02:55]}  Bg7 {[%clk 0:02:52]} 5. Nb5 {[%clk 0:02:55]}  Na6 {[%clk 0:02:51]} 6. e3 {[%clk 0:02:56]}  c6 {[%clk 0:02:49]} 7. Nc3 {[%clk 0:02:56]}  Nc7 {[%clk 0:02:47]} 8. h3 {[%clk 0:02:56]}  O-O {[%clk 0:02:43]} 9. Bd3 {[%clk 0:02:57]}  b5 {[%clk 0:02:26]} 10. O-O {[%clk 0:02:53]}  a5 {[%clk 0:02:21]} 11. a4 {[%clk 0:02:49]}  b4 {[%clk 0:02:18]} 12. Nb1 {[%clk 0:02:48]}  Ba6 {[%clk 0:02:18]} 13. Nbd2 {[%clk 0:02:42]}  Ne6 {[%clk 0:02:16]} 14. Bh2 {[%clk 0:02:36]}  c5 {[%clk 0:02:15]} 15. dxc5 {[%clk 0:02:07]}  Nxc5 {[%clk 0:02:13]} 16. Bxa6 {[%clk 0:02:07]}  Rxa6 {[%clk 0:02:12]} 17. Be5 {[%clk 0:01:56]}  Qd7 {[%clk 0:02:10]} 18. Nb3 {[%clk 0:01:56]}  Nxa4 {[%clk 0:02:00]} 19. Qd3 {[%clk 0:01:19]}  Raa8 {[%clk 0:01:58]} 20. Rfd1 {[%clk 0:01:11]}  Rfd8 {[%clk 0:01:49]} 21. Bd4 {[%clk 0:01:00]}  Ne4 {[%clk 0:01:43]} 22. Bxg7 {[%clk 0:00:43]}  Kxg7 {[%clk 0:01:42]} 23. Qd4+ {[%clk 0:00:40]}  f6 {[%clk 0:01:35]} 24. Ra2 {[%clk 0:00:25]}  Qc6 {[%clk 0:01:20]} 25. Qd3 {[%clk 0:00:21]}  Nac5 {[%clk 0:01:14]} 26. Nxc5 {[%clk 0:00:16]}  Nxc5 {[%clk 0:01:12]} 27. Qe2 {[%clk 0:00:17]}  a4 {[%clk 0:01:08]} 28. Nd4 {[%clk 0:00:16]}  Qb6 {[%clk 0:01:07]} 29. Rda1 {[%clk 0:00:16]}  e5 {[%clk 0:01:04]} 30. Nf3 {[%clk 0:00:16]}  Rac8 {[%clk 0:00:57]} 31. Ne1 {[%clk 0:00:16]}  e4 {[%clk 0:00:53]} 32. Rd1 {[%clk 0:00:13]}  Rd7 {[%clk 0:00:50]} 33. Rd4 {[%clk 0:00:14]}  Rb8 {[%clk 0:00:37]} 34. Qg4 {[%clk 0:00:13]}  f5 {[%clk 0:00:34]} 35. Qd1 {[%clk 0:00:14]}  Qc6 {[%clk 0:00:31]} 36. g3 {[%clk 0:00:12]}  g5 {[%clk 0:00:29]} 37. Ng2 {[%clk 0:00:11]}  h6 {[%clk 0:00:28]} 38. h4 {[%clk 0:00:11]}  Kg6 {[%clk 0:00:27]} 39. h5+ {[%clk 0:00:10]}  Kf6 {[%clk 0:00:26]} 40. g4 {[%clk 0:00:10]}  Qe6 {[%clk 0:00:23]} 41. gxf5 {[%clk 0:00:05]}  Qxf5 {[%clk 0:00:22]} 42. b3 {[%clk 0:00:05]}  a3 {[%clk 0:00:18]} 43. c3 {[%clk 0:00:06]}  Nd3 {[%clk 0:00:17]} 44. cxb4 {[%clk 0:00:02]}  Rxb4 {[%clk 0:00:13]} 45. Rxb4 {[%clk 0:00:01]}  Nxb4 {[%clk 0:00:13]} 46. Qd4+ {[%clk 0:00:02]}  Qe5 {[%clk 0:00:10]} 47. Qxb4 {[%clk 0:00:03]}  Rc7 {[%clk 0:00:05]} 48. Qd4 {[%clk 0:00:03]}  Qxd4 {[%clk 0:00:04]} 49. exd4 {[%clk 0:00:03]}  Ra7 {[%clk 0:00:01]} 50. Ne3 {[%clk 0:00:04]} 1-0


[Site "https://www.chess.com"]

[Event "Titled Tuesday Blitz February 07 Late 2023"]
[White "Barash, Anton"]
[Black "Kovacs, Klara"]
[WhiteFideId "30935229"]
[BlackFideId "733210"]
[WhiteElo "2074"]
[BlackElo "2121"]
[Result "1-0"]
[Round "09"]
[TimeControl "180+2"]
[Date "2023.02.07"]
[WhiteClock "0:01:53"]
[BlackClock "0:02:29"]

1. e4 {[%clk 0:02:55]}  e6 {[%clk 0:02:58]} 2. d4 {[%clk 0:02:55]}  d5 {[%clk 0:02:59]} 3. Nc3 {[%clk 0:02:55]}  Nf6 {[%clk 0:02:56]} 4. Bg5 {[%clk 0:02:55]}  dxe4 {[%clk 0:02:53]} 5. Nxe4 {[%clk 0:02:52]}  Be7 {[%clk 0:02:54]} 6. Bxf6 {[%clk 0:02:48]}  Bxf6 {[%clk 0:02:55]} 7. Nxf6+ {[%clk 0:02:47]}  Qxf6 {[%clk 0:02:55]} 8. Nf3 {[%clk 0:02:46]}  O-O {[%clk 0:02:56]} 9. Bd3 {[%clk 0:02:43]}  Nd7 {[%clk 0:02:56]} 10. O-O {[%clk 0:02:43]}  c5 {[%clk 0:02:57]} 11. Be4 {[%clk 0:02:37]}  cxd4 {[%clk 0:02:56]} 12. Qxd4 {[%clk 0:02:38]}  e5 {[%clk 0:02:56]} 13. Qd5 {[%clk 0:02:22]}  Re8 {[%clk 0:02:49]} 14. Rfe1 {[%clk 0:02:22]}  Nb6 {[%clk 0:02:47]} 15. Qb3 {[%clk 0:02:21]}  Bg4 {[%clk 0:02:47]} 16. a4 {[%clk 0:02:20]}  Rab8 {[%clk 0:02:46]} 17. a5 {[%clk 0:02:16]}  Nd7 {[%clk 0:02:46]} 18. Qb5 {[%clk 0:02:05]}  Rec8 {[%clk 0:02:37]} 19. h3 {[%clk 0:01:56]}  Bh5 {[%clk 0:02:29]} 20. Qxd7 {[%clk 0:01:53]} 1-0


[Site "https://www.chess.com"]

[Event "Titled Tuesday Blitz February 07 Late 2023"]
[White "Gonzalez, Francisco Silva"]
[Black "Liu, Leonardo"]
[WhiteFideId "1512285"]
[BlackFideId "30965780"]
[WhiteElo "2021"]
[BlackElo "1919"]
[Result "1-0"]
[Round "09"]
[TimeControl "180+2"]
[Date "2023.02.07"]
[WhiteClock "0:00:58"]
[BlackClock "0:00:18"]

1. d4 {[%clk 0:02:55]}  Nf6 {[%clk 0:02:59]} 2. c4 {[%clk 0:02:54]}  g6 {[%clk 0:02:59]} 3. Nc3 {[%clk 0:02:54]}  Bg7 {[%clk 0:02:59]} 4. e4 {[%clk 0:02:54]}  d6 {[%clk 0:03:00]} 5. f3 {[%clk 0:02:54]}  O-O {[%clk 0:03:00]} 6. Be3 {[%clk 0:02:48]}  c6 {[%clk 0:03:00]} 7. Bd3 {[%clk 0:02:47]}  a6 {[%clk 0:03:01]} 8. a4 {[%clk 0:02:45]}  a5 {[%clk 0:03:01]} 9. Nge2 {[%clk 0:02:44]}  Na6 {[%clk 0:03:01]} 10. Ng3 {[%clk 0:02:43]}  Nb4 {[%clk 0:03:01]} 11. Bb1 {[%clk 0:02:42]}  d5 {[%clk 0:03:01]} 12. e5 {[%clk 0:02:41]}  Nd7 {[%clk 0:03:00]} 13. cxd5 {[%clk 0:02:40]}  cxd5 {[%clk 0:03:00]} 14. f4 {[%clk 0:02:40]}  Nb6 {[%clk 0:03:00]} 15. b3 {[%clk 0:02:38]}  Be6 {[%clk 0:02:57]} 16. Bd3 {[%clk 0:02:34]}  Rc8 {[%clk 0:02:56]} 17. Nb5 {[%clk 0:02:33]}  Bd7 {[%clk 0:02:46]} 18. O-O {[%clk 0:02:31]}  Bxb5 {[%clk 0:02:44]} 19. axb5 {[%clk 0:02:31]}  Rc3 {[%clk 0:02:42]} 20. Bxg6 {[%clk 0:02:15]}  hxg6 {[%clk 0:02:23]} 21. Rf3 {[%clk 0:02:08]}  Nc2 {[%clk 0:02:14]} 22. Bd2 {[%clk 0:01:49]}  Rxf3 {[%clk 0:02:13]} 23. Qxc2 {[%clk 0:01:48]}  Rxg3 {[%clk 0:02:06]} 24. hxg3 {[%clk 0:01:48]}  Qd7 {[%clk 0:02:03]} 25. Qc5 {[%clk 0:01:45]}  Nc8 {[%clk 0:01:51]} 26. Bxa5 {[%clk 0:01:45]}  Qg4 {[%clk 0:01:41]} 27. Be1 {[%clk 0:01:39]}  b6 {[%clk 0:01:41]} 28. Qxd5 {[%clk 0:01:37]}  Qe2 {[%clk 0:01:37]} 29. Bf2 {[%clk 0:01:37]}  Bh6 {[%clk 0:01:30]} 30. Ra8 {[%clk 0:01:35]}  g5 {[%clk 0:01:20]} 31. f5 {[%clk 0:01:28]}  g4 {[%clk 0:01:18]} 32. Qc4 {[%clk 0:01:20]}  Qxc4 {[%clk 0:00:39]} 33. bxc4 {[%clk 0:01:19]}  e6 {[%clk 0:00:38]} 34. f6 {[%clk 0:01:18]}  Rd8 {[%clk 0:00:34]} 35. d5 {[%clk 0:01:08]}  exd5 {[%clk 0:00:34]} 36. cxd5 {[%clk 0:01:07]}  Bc1 {[%clk 0:00:28]} 37. e6 {[%clk 0:01:05]}  fxe6 {[%clk 0:00:21]} 38. dxe6 {[%clk 0:01:05]}  Kf8 {[%clk 0:00:20]} 39. Bxb6 {[%clk 0:01:00]}  Re8 {[%clk 0:00:18]} 40. Bc5+ {[%clk 0:00:58]}  Kg8 {[%clk 0:00:19]} 41. f7+ {[%clk 0:00:58]}  Kg7 {[%clk 0:00:18]} 1-0


[Site "https://www.chess.com"]

[Event "Titled Tuesday Blitz February 07 Late 2023"]
[White "Sailer, Mike"]
[Black "Rose, Felix"]
[WhiteFideId "2012901"]
[BlackFideId "5105722"]
[WhiteElo "2109"]
[BlackElo "2091"]
[Result "1-0"]
[Round "09"]
[TimeControl "180+2"]
[Date "2023.02.07"]
[WhiteClock "0:00:07"]
[BlackClock "0:00:02"]

1. d4 {[%clk 0:03:00]}  d5 {[%clk 0:02:57]} 2. Bf4 {[%clk 0:02:59]}  Nf6 {[%clk 0:02:56]} 3. Nf3 {[%clk 0:02:59]}  e6 {[%clk 0:02:56]} 4. e3 {[%clk 0:02:59]}  Bd6 {[%clk 0:02:56]} 5. Bg3 {[%clk 0:03:00]}  O-O {[%clk 0:02:57]} 6. Bd3 {[%clk 0:03:00]}  c5 {[%clk 0:02:56]} 7. c3 {[%clk 0:03:00]}  b6 {[%clk 0:02:57]} 8. Nbd2 {[%clk 0:03:01]}  Ba6 {[%clk 0:02:57]} 9. Bxa6 {[%clk 0:02:57]}  Nxa6 {[%clk 0:02:58]} 10. a3 {[%clk 0:02:55]}  b5 {[%clk 0:02:58]} 11. b4 {[%clk 0:02:55]}  cxd4 {[%clk 0:02:48]} 12. cxd4 {[%clk 0:02:55]}  Rc8 {[%clk 0:02:47]} 13. Nb3 {[%clk 0:02:52]}  Bxg3 {[%clk 0:02:19]} 14. hxg3 {[%clk 0:02:52]}  Ne4 {[%clk 0:02:12]} 15. Nc5 {[%clk 0:02:47]}  Naxc5 {[%clk 0:02:12]} 16. bxc5 {[%clk 0:02:46]}  a5 {[%clk 0:02:08]} 17. Ne5 {[%clk 0:02:44]}  Qf6 {[%clk 0:02:00]} 18. O-O {[%clk 0:02:36]}  Rfd8 {[%clk 0:01:45]} 19. Qd3 {[%clk 0:02:27]}  Nxc5 {[%clk 0:01:37]} 20. Qxb5 {[%clk 0:02:20]}  Ne4 {[%clk 0:01:32]} 21. Qxa5 {[%clk 0:02:17]}  Ra8 {[%clk 0:01:30]} 22. Qc7 {[%clk 0:02:09]}  Rdc8 {[%clk 0:01:25]} 23. Qd7 {[%clk 0:02:03]}  Rc2 {[%clk 0:01:10]} 24. Nd3 {[%clk 0:01:46]}  h5 {[%clk 0:00:56]} 25. a4 {[%clk 0:01:40]}  h4 {[%clk 0:00:47]} 26. gxh4 {[%clk 0:01:39]}  Qxh4 {[%clk 0:00:42]} 27. a5 {[%clk 0:01:36]}  Rd2 {[%clk 0:00:41]} 28. Ra3 {[%clk 0:01:22]}  Kh7 {[%clk 0:00:24]} 29. Qxf7 {[%clk 0:01:13]}  Ng5 {[%clk 0:00:18]} 30. Qf4 {[%clk 0:01:06]}  Qh5 {[%clk 0:00:13]} 31. a6 {[%clk 0:00:57]}  Ne4 {[%clk 0:00:11]} 32. a7 {[%clk 0:00:49]}  Nf6 {[%clk 0:00:08]} 33. Qh2 {[%clk 0:00:33]}  Qxh2+ {[%clk 0:00:08]} 34. Kxh2 {[%clk 0:00:32]}  Ne4 {[%clk 0:00:07]} 35. Kg1 {[%clk 0:00:30]}  Nd6 {[%clk 0:00:08]} 36. Rb1 {[%clk 0:00:29]}  Nc4 {[%clk 0:00:07]} 37. Rb8 {[%clk 0:00:24]}  Rxa7 {[%clk 0:00:06]} 38. Rxa7 {[%clk 0:00:24]}  Rxd3 {[%clk 0:00:06]} 39. Rbb7 {[%clk 0:00:23]}  Rd1+ {[%clk 0:00:07]} 40. Kh2 {[%clk 0:00:23]}  Nd2 {[%clk 0:00:08]} 41. Rxg7+ {[%clk 0:00:23]}  Kh6 {[%clk 0:00:07]} 42. Rh7+ {[%clk 0:00:24]}  Kg6 {[%clk 0:00:08]} 43. Rag7+ {[%clk 0:00:24]}  Kf6 {[%clk 0:00:08]} 44. Rf7+ {[%clk 0:00:25]}  Kg6 {[%clk 0:00:08]} 45. Rhg7+ {[%clk 0:00:24]}  Kh6 {[%clk 0:00:08]} 46. g4 {[%clk 0:00:21]}  Nf1+ {[%clk 0:00:06]} 47. Kg2 {[%clk 0:00:21]}  Nd2 {[%clk 0:00:06]} 48. f4 {[%clk 0:00:14]}  Ne4 {[%clk 0:00:05]} 49. Rh7+ {[%clk 0:00:12]}  Kg6 {[%clk 0:00:05]} 50. Rfg7+ {[%clk 0:00:12]}  Kf6 {[%clk 0:00:05]} 51. g5+ {[%clk 0:00:13]}  Nxg5 {[%clk 0:00:06]} 52. fxg5+ {[%clk 0:00:11]}  Kf5 {[%clk 0:00:06]} 53. g6 {[%clk 0:00:09]}  Ke4 {[%clk 0:00:06]} 54. Rh4+ {[%clk 0:00:09]}  Kxe3 {[%clk 0:00:07]} 55. Re7 {[%clk 0:00:09]}  Rd2+ {[%clk 0:00:07]} 56. Kg3 {[%clk 0:00:09]}  e5 {[%clk 0:00:05]} 57. Rxe5+ {[%clk 0:00:10]}  Kd3 {[%clk 0:00:06]} 58. g7 {[%clk 0:00:07]}  Rd1 {[%clk 0:00:02]} 59. Rh3 {[%clk 0:00:07]}  Rg1+ {[%clk 0:00:02]} 60. Kf2+ {[%clk 0:00:07]} 1-0


[Site "https://www.chess.com"]

[Event "Titled Tuesday Blitz February 07 Late 2023"]
[White "Balog, Imre"]
[Black "Floresvillar Gonzalez, Luis Migu"]
[WhiteFideId "728446"]
[BlackFideId "5100542"]
[WhiteElo "2615"]
[BlackElo "2043"]
[Result "1-0"]
[Round "09"]
[TimeControl "180+2"]
[Date "2023.02.07"]
[WhiteClock "0:00:09"]
[BlackClock "0:00:01"]

1. e4 {[%clk 0:02:59]}  e6 {[%clk 0:03:00]} 2. Qe2 {[%clk 0:02:48]}  Be7 {[%clk 0:02:58]} 3. g3 {[%clk 0:02:43]}  c5 {[%clk 0:02:58]} 4. Bg2 {[%clk 0:02:43]}  Nc6 {[%clk 0:02:58]} 5. Nf3 {[%clk 0:02:41]}  Nf6 {[%clk 0:02:53]} 6. d3 {[%clk 0:02:38]}  d5 {[%clk 0:02:53]} 7. exd5 {[%clk 0:02:28]}  exd5 {[%clk 0:02:45]} 8. O-O {[%clk 0:02:23]}  O-O {[%clk 0:02:45]} 9. Nc3 {[%clk 0:02:22]}  Re8 {[%clk 0:02:45]} 10. Bf4 {[%clk 0:02:10]}  Bg4 {[%clk 0:02:43]} 11. Qd2 {[%clk 0:02:06]}  Nd4 {[%clk 0:02:38]} 12. Nxd4 {[%clk 0:01:57]}  cxd4 {[%clk 0:02:37]} 13. Nb5 {[%clk 0:01:54]}  a5 {[%clk 0:02:07]} 14. a3 {[%clk 0:01:33]}  Rc8 {[%clk 0:01:47]} 15. Nxd4 {[%clk 0:01:25]}  Qd7 {[%clk 0:01:34]} 16. Qxa5 {[%clk 0:01:08]}  h6 {[%clk 0:01:29]} 17. c3 {[%clk 0:01:01]}  Bd8 {[%clk 0:01:23]} 18. Qb5 {[%clk 0:00:57]}  Qe7 {[%clk 0:01:16]} 19. h3 {[%clk 0:00:47]}  Bh5 {[%clk 0:00:58]} 20. Qb4 {[%clk 0:00:38]}  Qd7 {[%clk 0:00:52]} 21. Qb5 {[%clk 0:00:35]}  Qe7 {[%clk 0:00:51]} 22. Nf5 {[%clk 0:00:35]}  Qc5 {[%clk 0:00:18]} 23. Qxc5 {[%clk 0:00:31]}  Rxc5 {[%clk 0:00:17]} 24. Nd6 {[%clk 0:00:28]}  Rf8 {[%clk 0:00:17]} 25. Nxb7 {[%clk 0:00:28]}  Rb5 {[%clk 0:00:17]} 26. Nxd8 {[%clk 0:00:26]}  Rxd8 {[%clk 0:00:17]} 27. b4 {[%clk 0:00:21]}  Be2 {[%clk 0:00:16]} 28. a4 {[%clk 0:00:21]}  Rb7 {[%clk 0:00:15]} 29. Rfe1 {[%clk 0:00:20]}  Bxd3 {[%clk 0:00:15]} 30. a5 {[%clk 0:00:19]}  Be4 {[%clk 0:00:14]} 31. a6 {[%clk 0:00:16]}  Rb5 {[%clk 0:00:12]} 32. Bf1 {[%clk 0:00:15]}  Rb6 {[%clk 0:00:09]} 33. Bc7 {[%clk 0:00:14]}  Rbb8 {[%clk 0:00:06]} 34. a7 {[%clk 0:00:12]}  Ra8 {[%clk 0:00:06]} 35. Bxd8 {[%clk 0:00:12]}  Rxd8 {[%clk 0:00:05]} 36. a8=Q {[%clk 0:00:12]}  Rxa8 {[%clk 0:00:05]} 37. Rxa8+ {[%clk 0:00:12]}  Kh7 {[%clk 0:00:06]} 38. Rd8 {[%clk 0:00:10]}  Nh5 {[%clk 0:00:05]} 39. Rd1 {[%clk 0:00:10]}  Nf6 {[%clk 0:00:05]} 40. Bd3 {[%clk 0:00:10]}  g5 {[%clk 0:00:04]} 41. Bxe4+ {[%clk 0:00:10]}  dxe4 {[%clk 0:00:05]} 42. R8d6 {[%clk 0:00:10]}  Kg7 {[%clk 0:00:04]} 43. Rxf6 {[%clk 0:00:10]}  Kxf6 {[%clk 0:00:04]} 44. Rd6+ {[%clk 0:00:10]}  Ke5 {[%clk 0:00:04]} 45. Rxh6 {[%clk 0:00:10]}  f5 {[%clk 0:00:05]} 46. Rh7 {[%clk 0:00:10]}  e3 {[%clk 0:00:05]} 47. fxe3 {[%clk 0:00:09]}  Ke4 {[%clk 0:00:05]} 48. Re7+ {[%clk 0:00:09]}  Kf3 {[%clk 0:00:05]} 49. g4 {[%clk 0:00:09]}  f4 {[%clk 0:00:05]} 50. Rf7 {[%clk 0:00:09]}  Kg3 {[%clk 0:00:04]} 51. Kf1 {[%clk 0:00:09]}  f3 {[%clk 0:00:03]} 52. b5 {[%clk 0:00:08]}  Kxh3 {[%clk 0:00:03]} 53. Rxf3+ {[%clk 0:00:08]}  Kh4 {[%clk 0:00:03]} 54. Rf8 {[%clk 0:00:09]}  Kg3 {[%clk 0:00:03]} 55. b6 {[%clk 0:00:10]}  Kxg4 {[%clk 0:00:02]} 56. b7 {[%clk 0:00:10]}  Kg3 {[%clk 0:00:03]} 57. b8=Q+ {[%clk 0:00:10]}  Kg4 {[%clk 0:00:02]} 58. Rg8 {[%clk 0:00:09]}  Kh3 {[%clk 0:00:01]} 59. Rxg5 {[%clk 0:00:09]} 1-0


[Site "https://www.chess.com"]